Cogmind - Beta 14 --- EXPLORER MODE // 2024.08.16 @ 15:24:26 Player: wolft Result: Self-destructed Performance ------------- Evolutions (1) 500 Regions Visited (3) 600 Robots Destroyed (35) 175 Value Destroyed (628) 628 Prototype IDs (1) 20 Alien Tech Used (0) 0 Bonus (0) 0 TOTAL SCORE: 1923 Bonus ------- None Cogmind --------- Core Integrity 349/400 Matter 300/300 Energy 160/160 System Corruption 0% Temperature Cool (0) Movement Rolling (100) Location -9/Materials Parts ------- > --- POWER (1) -------- Light Nuclear Core > --- PROPULSION (3) --- Compact Wheel Compact Wheel Compact Wheel > --- UTILITY (4) ------ Cooling System Disposable Heat Sink Medium Storage Unit Weapon Shielding > --- WEAPON (2) ------- Beam Rifle Beam Cannon > --- INVENTORY (10) --- Ion Engine Light Ion Engine Compact Wheel Flight Unit Flight Unit Machine Analyzer Visual Processing Unit Signal Interpreter Improved Targeting Computer Particle Gun Peak State ------------ > --- POWER ------------ Ion Engine > --- PROPULSION ------- Compact Wheel Compact Wheel Compact Wheel > --- UTILITY ---------- Improved Heat Sink Disposable Heat Sink Medium Storage Unit Weapon Shielding > --- WEAPON ----------- Improved EM Shotgun Particle Gun > --- INVENTORY -------- Light Ion Engine Light Ion Engine Compact Wheel Hover Unit Machine Analyzer Visual Processing Unit Signal Interpreter Targeting Computer Particle Gun Beam Cannon [Rating: 17] Favorites ----------- Power Ion Engine Engine Ion Engine Power Core Light Nuclear Core Propulsion Aluminum Leg Leg Aluminum Leg Wheel Compact Wheel Utility Medium Storage Unit Device Improved Heat Sink Storage Medium Storage Unit Protection Weapon Shielding Weapon Particle Gun Energy Gun Particle Gun Energy Cannon Beam Cannon Build | -11 -10 -10 -9 ------- Run | Yrd Mat Min Mat Slots Evolved 3 | . 1 . 2 Power . | . . . . Propulsion 1 | . . . 1 Utility 2 | . 1 . 1 Weapon . | . . . . Parts Attached 31 | 6 9 4 12 Power 5 | 1 1 1 2 Engine 3 | 1 1 1 . Core 2 | . . . 2 Reactor . | . . . . Propulsion 8 | 2 1 3 2 Treads . | . . . . Leg 4 | 2 1 1 . Wheel 4 | . . 2 2 Hover . | . . . . Flight . | . . . . Utility 8 | 2 2 . 4 Device 4 | . 1 . 3 Storage 2 | 1 1 . . Processor . | . . . . Hackware . | . . . . Protection 2 | 1 . . 1 Artifact . | . . . . Weapon 10 | 1 5 . 4 Energy Gun 8 | 1 4 . 3 Energy Cannon 2 | . 1 . 1 Ballistic Gun . | . . . . Ballistic Cannon . | . . . . Launcher . | . . . . Special Weapon . | . . . . Impact Weapon . | . . . . Slashing Weapon . | . . . . Piercing Weapon . | . . . . Special Melee Weapon . | . . . . Unidentified Prototypes 1 | . . . 1 Parts Lost . | . . . . Power . | . . . . Propulsion . | . . . . Utility . | . . . . Weapon . | . . . . Highest Loss Streak . | . . . . To Critical Strikes . | . . . . Average Slot Usage (%) 95 | . 93 100 98 Engine 9 | . 12 12 4 Core 1 | . . . 5 Leg 16 | . 25 16 . Wheel 9 | . . 8 29 Device 12 | . 9 12 19 Storage 11 | . 12 12 10 Protection 11 | . 12 12 9 Energy Gun 15 | . 18 12 9 Energy Cannon 5 | . 2 12 10 Peak Build Rating 17 | 6 13 12 17 Average Rating 11 | 4 10 11 15 On Entrance 7 | . 6 12 12 Naked Turns . | . . . . Heaviest Build 25 | 17 23 23 25 Greatest Support 48 | 20 20 32 48 Greatest Overweight (x) 1 | . 1 1 . Average Overweight (x) . | . . . . Largest Inventory Capacity 10 | 10 10 10 10 Average Capacity 9 | 8 10 10 10 Most Carried 10 | 3 10 10 10 Average Carried 8 | 1 8 9 9 Final Capacity 10 | 10 10 10 10 Final Carried 10 | 3 10 10 10 Class Distribution -------------------- 85% | Hacker-Mutant 14% | Scavenger-Mutant Dominant Class ---------------- Hacker-Mutant | -10/Materials Hacker-Mutant | -10/Mines Scavenger-Mutant | -9/Materials Resources | -11 -10 -10 -9 ----------- Run | Yrd Mat Min Mat Matter Collected 510 | 260 90 40 120 Remotely . | . . . . Salvage Created 1249 | 67 376 310 496 Parts 59 | 3 23 10 23 Haulers Intercepted 4 | . 2 . 2 Recyclers Shooed 2 | . 1 1 . Parts Field Recycled . | . . . . Retrieved Matter . | . . . . Parts Self-Destructed . | . . . . Prevented . | . . . . Kills | -11 -10 -10 -9 ------- Run | Yrd Mat Min Mat Combat Hostiles Destroyed 17 | . 6 . 11 Guns 10 | . 5 . 5 Cannons 6 | . . . 6 Classes Destroyed 9 | 1 4 1 3 Worker 1 | . . . 1 Tunneler 1 | . . 1 . Hauler 4 | . 2 . 2 Recycler 5 | 1 . 4 . Mechanic 1 | . . . 1 Watcher 6 | . 3 . 3 Swarmer 7 | . 2 . 5 Grunt 9 | . 4 . 5 Sentry 1 | . . . 1 Best Kill Streak 10 | 1 2 3 10 Combat Bots Only 5 | . 2 . 5 Max Kills in Single Turn 1 | 1 1 1 1 Gunslinging . | . . . . Exploded . | . . . . Melee . | . . . . Uniques/NPCs Destroyed . | . . . . Combat | -11 -10 -10 -9 -------- Run | Yrd Mat Min Mat Hostile Shots Fired 85 | . 31 . 54 Missed 20 | . 5 . 15 Damage Taken 485 | . 214 . 271 Core 58 | . 7 . 51 Absorbed by Shields . | . . . . Redirected to Shielding 35 | . 18 . 17 Ignored by Resistances 315 | . 137 . 178 Regen/Repaired (Parts) 87 | . 29 . 58 Core Remaining (%) 98 | 100 . 97 . Volleys Fired 89 | 6 43 8 32 Largest 2 | 1 2 2 2 Hottest 130 | 40 130 125 125 Shots Fired 145 | 6 59 16 64 Gun 105 | 6 59 8 32 Cannon 40 | . . 8 32 Launcher . | . . . . Special . | . . . . Kinetic . | . . . . Thermal 145 | 6 59 16 64 Explosive . | . . . . Electromagnetic . | . . . . Robot Hit Streak 21 | 3 21 8 13 Robot Miss Streak 2 | 1 2 1 2 Penetration Max . | . . . . Secondary Targets . | . . . . Shots Hit Robots 119 | 5 51 13 50 Core Hits 46 | 2 17 6 21 Critical Kills . | . . . . Critical Parts Destroyed . | . . . . Critical Strikes 1 | . . . 1 Burn 1 | . . . 1 Melee Attacks . | . . . . Impact . | . . . . Slashing . | . . . . Piercing . | . . . . Sneak Attacks . | . . . . Combat Hostiles . | . . . . Follow-up Attacks . | . . . . Damage Inflicted 1761 | 55 631 216 859 Guns 1222 | 55 631 112 424 Cannons 539 | . . 104 435 Explosions . | . . . . Melee . | . . . . Ramming . | . . . . Kinetic . | . . . . Thermal 1761 | 55 631 216 859 Explosive . | . . . . Electromagnetic . | . . . . Impact . | . . . . Slashing . | . . . . Piercing . | . . . . Highest Corruption . | . . . . Average Corruption . | . . . . Corruption Purged . | . . . . Corruption Blocked . | . . . . Overload Shots . | . . . . Overflow Damage 12 | . . . 12 Projectiles 12 | . . . 12 Explosions . | . . . . Melee . | . . . . Knockbacks . | . . . . Impact . | . . . . Kinetic . | . . . . Secondary . | . . . . Self-Inflicted Damage . | . . . . Shots . | . . . . Rammed . | . . . . Targets Rammed . | . . . . Kicked . | . . . . Crushed . | . . . . Highest Temperature 144 | . 81 63 144 Average Temperature 36 | . 22 24 49 Received Heat Transfer 342 | . 183 . 159 Siege Activations . | . . . . Robots Corrupted . | . . . . Combat Hostiles . | . . . . Parts Fried . | . . . . Impact Corruptions . | . . . . Robots Melted 1 | . 1 . . Combat Hostiles 1 | . 1 . . Parts Melted 13 | . 5 2 6 Heat Transferred 4120 | 125 1479 481 2035 Parts Sabotaged . | . . . . Parts Stolen . | . . . . Parts Stripped . | . . . . Power Chain Reactions . | . . . . Alert | -11 -10 -10 -9 ------- Run | Yrd Mat Min Mat Peak Influence 276 | 5 161 25 276 Initial 6 | . 2 . 6 Average 59 | 1 43 13 125 Maximum Alert Level 1 | . . . 1 Low Security (%) 90 | 100 100 100 63 Level 1 9 | . . . 36 Level 2 . | . . . . Level 3 . | . . . . Level 4 . | . . . . Level 5 . | . . . . High Security . | . . . . Max Security . | . . . . Squads Dispatched . | . . . . Investigation . | . . . . Extermination . | . . . . Reinforcement . | . . . . Assault . | . . . . Garrison . | . . . . Intercept . | . . . . Searches Triggered . | . . . . Construction Impeded . | . . . . Haulers Reinforced . | . . . . Active Scanning Responses . | . . . . Cargo Convoy Interrupts . | . . . . Stealth | -11 -10 -10 -9 --------- Run | Yrd Mat Min Mat Distress Signals 2 | . . . 2 Communications Jammed . | . . . . Distress Signals . | . . . . Times Spotted 24 | . 10 . 14 Peak Tracking Total 3 | . 2 . 3 Tactical Retreats . | . . . . Traps | -11 -10 -10 -9 ------- Run | Yrd Mat Min Mat Traps Triggered 2 | . 1 . 1 Indirectly . | . . . . Trap Hack Attempts . | . . . . Triggered . | . . . . Disarmed . | . . . . Reprogrammed . | . . . . Reused . | . . . . Traps Extracted . | . . . . Installed . | . . . . Triggered . | . . . . Machines | -11 -10 -10 -9 ---------- Run | Yrd Mat Min Mat Machines Disabled . | . . . . Max in Single Turn . | . . . . Machines Repaired . | . . . . Machines Dismantled . | . . . . Machines Sabotaged . | . . . . Overloaded Fab Kills . | . . . . Hacking | -11 -10 -10 -9 --------- Run | Yrd Mat Min Mat Machines Accessed 4 | . 2 . 2 Terminals 2 | . 1 . 1 Fabricators . | . . . . Repair Stations 2 | . 1 . 1 Recycling Units . | . . . . Scanalyzers . | . . . . Garrison Access . | . . . . Total Hacks 12 | . 6 . 6 Successful 8 | . 4 . 4 Failed 4 | . 2 . 2 Catastrophic . | . . . . Database Lockouts . | . . . . Manual . | . . . . Terminals 3 | . 1 . 2 Fabricators . | . . . . Repair Stations 9 | . 5 . 4 Recycling Units . | . . . . Scanalyzers . | . . . . Garrison Access . | . . . . Terminal Hacks 1 | . 1 . . Record 1 | . 1 . . Fabricator Hacks . | . . . . Repair Station Hacks 7 | . 3 . 4 Scan Component 4 | . 2 . 2 Repair 3 | . 1 . 2 Recycling Unit Hacks . | . . . . Scanalyzer . | . . . . Garrison Access Hacks . | . . . . Unauthorized Hacks . | . . . . Terminals . | . . . . Fabricators . | . . . . Repair Stations . | . . . . Recycling Units . | . . . . Scanalyzers . | . . . . Garrison Access . | . . . . Data Cores Recovered . | . . . . Used . | . . . . Hacking Detections 3 | . 1 . 2 Full Trace Events . | . . . . Feedback Events . | . . . . Feedback Blocked . | . . . . Robot Schematics Acquired . | . . . . Robots Built . | . . . . Authchips . | . . . . Time . | . . . . Total Robot Build Rating . | . . . . Part Schematics Acquired . | . . . . Parts Built . | . . . . Authchips . | . . . . Time . | . . . . Total Part Build Rating . | . . . . Parts Repaired 3 | . 1 . 2 Time 88 | . 36 . 52 Parts Recycled . | . . . . Recycled Matter . | . . . . Retrieved Matter . | . . . . Retrieved Components . | . . . . Parts Scanalyzed . | . . . . Part Schematics Acquired . | . . . . Parts Damaged . | . . . . Bothacking | -11 -10 -10 -9 ------------ Run | Yrd Mat Min Mat Used RIF Installer . | . . . . Robots Hacked . | . . . . Non-combat . | . . . . Combat . | . . . . Robot Hacks Applied . | . . . . Relay Couplers Released . | . . . . Fabnet Peak Effective % . | . . . . Robots Rewired . | . . . . Allies Hacked . | . . . . Hacks Repelled . | . . . . Allies | -11 -10 -10 -9 -------- Run | Yrd Mat Min Mat Total Allies . | . . . . Largest Group . | . . . . Highest-Rated Group . | . . . . Highest-Rated Ally . | . . . . Total Orders . | . . . . Ally Attacks . | . . . . Total Damage . | . . . . Kills . | . . . . Allies Corrupted . | . . . . Allies Melted . | . . . . Intel | -11 -10 -10 -9 ------- Run | Yrd Mat Min Mat Robot Analysis Total . | . . . . Derelict Logs Recovered . | . . . . Drone Launches . | . . . . Drone Recoveries . | . . . . Exploration | -11 -10 -10 -9 ------------- Run | Yrd Mat Min Mat Turns Passed 2111 | 88 1198 261 564 Spaces Moved 1201 | 56 617 156 372 Core 4 | 4 . . . Treads . | . . . . Legs 744 | 52 617 75 . Wheels 453 | . . 81 372 Hover . | . . . . Flight . | . . . . Fastest Speed 50 | 50 120 100 100 Average Speed 140 | 115 166 143 100 Slowest Speed 190 | 120 190 190 100 Overloaded Moves . | . . . . Propulsion Burnouts . | . . . . Robots Hopped . | . . . . Cave-ins Triggered . | . . . . Exploration Rate (%) 39 | 4 85 40 27 Regions Visited 3 Branch Regions 1 Pre-discovered Areas . | . . . . Known Exits Taken 3 | 1 1 1 . Unknown Exits Taken . | . . . . Scrap Searched . | . . . . Spaces Dug . | . . . . Terrain Destroyed . | . . . . Melee . | . . . . Projectile . | . . . . AOE . | . . . . Terrain Rammed . | . . . . Walls Destroyed . | . . . . Machines Disabled . | . . . . Actions | -11 -10 -10 -9 --------- Run | Yrd Mat Min Mat Total 1486 | 70 733 178 505 Wait 119 | . 48 . 71 Move 1198 | 55 616 155 372 Hop . | . . . . Pick Up 26 | 3 10 5 8 Fast Attach 17 | 6 4 1 6 Attach 2 | . . . 2 Detach . | . . . . Swap 12 | . 5 3 4 Drop 23 | . 7 6 10 Fire 89 | 6 43 8 32 Melee . | . . . . Ram . | . . . . Kick . | . . . . Crush . | . . . . Escape Stasis . | . . . . Rewire . | . . . . Trap . | . . . . Miscellaneous . | . . . . Route ------- -11/Scrapyard -10/Materials (discovered 4 exits: *Mat x3 / *Min) -10/Mines (discovered 2 exits: *Mat x2) -9/Materials (discovered 1 exit: *Min) History --------- Turn | Location | Event 3 | -11/Scrapyard | Identified exit to Materials 3 | -11/Scrapyard | Discovered exit to Materials (range 15) 89 | -11/Scrapyard | Entered Materials 89 | -10/Materials | Evolved 1 slot: Utility x1 215 | -10/Materials | Identified exit to Materials 215 | -10/Materials | Discovered exit to Materials (range 9) 318 | -10/Materials | Build established: Hacker-Mutant 481 | -10/Materials | Repaired Broken Sml. Laser 570 | -10/Materials | Discovered exit to Materials (range 11) 705 | -10/Materials | Discovered exit to Materials (range 8) 1207 | -10/Materials | Identified exit to Mines 1207 | -10/Materials | Discovered exit to Mines (range 13) 1287 | -10/Materials | Entered Mines 1291 | -10/Mines | Discovered exit to Materials (range 9) 1502 | -10/Mines | Assembled infested the area 1526 | -10/Mines | Discovered exit to Materials (range 6) 1548 | -10/Mines | Entered Materials 1548 | -9/Materials | Evolved 2 slots: Propulsion x1, Utility x1 1642 | -9/Materials | Repaired Com. Wheel 1784 | -9/Materials | Identified exit to Mines 1784 | -9/Materials | Discovered exit to Mines (range 12) 1993 | -9/Materials | Repaired Weapon Shielding 2112 | -9/Materials | Self-destructed Last Messages --------------- Repairing Weapon Shielding... ETC: 26 01993_ Repair station completes Weapon Shielding repairs. 01993_ Acquired Weapon Shielding. 02045_ K-01 Serf collects debris. 02080_ S-10 Pest destroyed. 02086_ Destroyed Lgt. Ion Engine. 02086_ Flight Unit melted. 02086_ S-10 Pest destroyed. 02089_ S-10 Pest suffers critical hit (Burn). 02090_ K-01 Serf collects debris. 02092_ K-01 Serf destroyed. 02095_ Destroyed Lgt. Ion Engine. 02098_ S-10 Pest destroyed. 02103_ Acquired 10 matter. 02105_ Dropped Hover Unit. 02106_ Acquired Flight Unit. 02111_ Dropped Flight Unit. 02111_ Acquired Flight Unit. Map ----- +----------------------------------------------------+ | ????????????????????# "" # #??# [! ## %+ | | ????????????????????# T" # #??# [! ## !# % | | ????????????????????# "" # #??# ## %# | | ??????????????????????= # #??# ## %#### | | ????????????????????####+### #########+### #?? | | ????????????????????# % #?? | | ????????????????????# #?? | | ????????????????????# % ! #?? | | ????????????????????# %#######+########## #?? | | ????????????????????# #?# #????##### #?? | | ????????????????????# #?# #????????# #?? | | ????????????????????# #?# #????????# #?? | | ????????????????????#! #?# #????????# #?? | | ???????????##########% #?# #????????# #?? | | ???????????# # #?# #????????# ### | | ???????????# #% #?# #????????# # | | ???????????# # #?# #????????# # | | ???????????# # #############?#####??# # | | ???????????# #%!% ### ?# # | | ???????????# +* [ ""# ?# # | | ???????????# # * ""#""" # # | | ???????????# #% """ """ T"#""" # # | | ???????????# # = """ """ ""#""" + + | | ???????????######+### % """ """ ""# # # | | ???" "##### # =""" """ ########## # | | ?? @% = #???????# | | ?? > %%= ! #######?# | | ?? [ !%! #?# | | ??# ##### # #####=!! #?# | | ???######?????####### #???# #?# | | ????????????????????#! !#???######## #?# | | ????????????????????##!!!!##??????????# #?# | | ?????????????????????######???????????# #?# | | ??????????????????????????????????????# #?# | | ??????????????????????????????????????# #?# | | ??????????????????????????????????????# ### | | ??????????????????????????????????????# | | ????????????????????????????????????####+######## | | ????????????????????????????????????# ! #??# | | ????????????????????????????????????# """ #??# | | ????????????????????????????????????# """ #??# | | ????????????????????????????????????# """ #### | | ????????????????????????????????????# + | | ????????????????????????????????????# """ # | | ????????????????????????????????????# """ # | | ????????????????????????????????????# """ + | | ????????????????????????????????????# ##### | | ????????????????????????????????????##########???# | | ?????????????????????????????????????????????????# | | ?????????????????????????????????????????????????# | +----------------------------------------------------+ Best States ------------- Heat Dissipation 50 Coolant Potential 50 Energy Generation 14 Energy Capacity 250 Matter Stores 300 Matter Capacity 300 Sight Range 16 Terrain Scan Density 10 Resistance: KI 35 Resistance: TH 35 Resistance: EX 35 Resistance: EM 35 Resistance: I 35 Resistance: S 35 Resistance: P 35 Weapon Shielding 33 Evasion (%) 55 Offensive Hacking 20 Item Schematics ----------------- None Robot Schematics ------------------ None Fabricated ------------ Nothing Alien Tech Used ----------------- None Achievements -------------- None Challenges ------------ None Game ------ Seed SwordWeightTrident Manual? 0 Play Time 00:20:40 Cumulative 57.2 hours Start 2024.08.12 @ 11:11:06 End 2024.08.16 @ 15:24:26 Sessions 5 Manual Loads 0 Difficulty Explorer Special Mode None Game No. 104 Rogue 6 Adventurer 26 Explorer 72 Win Type - Total 1 Types 1/0/0/0/0/0/0/0/0 Lore% 21 Gallery% 41 Achievement% 38 Wizard Run 0 Options --------- Layout 1 ASCII 0 Keyboard 0 Movement Mouse Keybinds 0 Fullscreen 1 Font 24/Terminus Map View 50x35 Zoom Use 1% Tactical HUD 1 Map Filters NONE Filters NONE Steam 1 RUN: df480501-833a-4e51-bccd-b2c769aa9f08